bitfinex/quotes_BTCUSD_20241014
["timestamp","ask_amount","ask_price","bid_price","bid_amount"]
[1728866133868,0.02184997,62821.0,62820.0,0.000818]
[1728866134080,0.18203197,62821.0,62820.0,0.000818]
[1728866134550,0.17903197,62821.0,62820.0,0.000818]
[1728866134959,0.18003197,62821.0,62820.0,0.001818]
[1728866135179,0.18103197,62821.0,62820.0,0.001818]
[1728866135400,0.18003197,62821.0,62820.0,0.000818]
[1728866135849,0.18603197,62821.0,62820.0,0.000818]
[1728866136755,0.18103197,62821.0,62820.0,0.000818]
[1728866138306,0.18103217,62821.0,62820.0,0.000818]
[1728866139869,0.18003217,62821.0,62820.0,0.000818]
[1728866140296,0.18103217,62821.0,62820.0,0.000818]
[1728866140528,0.18003217,62821.0,62820.0,0.000818]
[1728866140988,0.18103217,62821.0,62820.0,0.000818]
[1728866143302,0.18003217,62821.0,62820.0,0.000818]
[1728866143516,0.02185017,62821.0,62820.0,0.000818]
[1728866143728,0.18103217,62821.0,62820.0,0.000818]
[1728866144173,0.18003217,62821.0,62820.0,0.000818]
[1728866144597,0.02185017,62821.0,62820.0,0.000818]
[1728866144814,0.02085017,62821.0,62820.0,0.000818]
[1728866145026,0.01985017,62821.0,62820.0,0.00954995]
[1728866145249,0.18003217,62821.0,62820.0,0.000818]
[1728866145927,0.36083217,62821.0,62820.0,0.000818]
[1728866146175,0.55006202,62821.0,62820.0,0.000818]
[1728866146399,0.81874239,62821.0,62820.0,0.000818]
[1728866146608,0.65206202,62821.0,62820.0,0.000818]
[1728866147052,0.65106202,62821.0,62820.0,0.000818]
[1728866147736,0.65206202,62821.0,62820.0,0.000818]
[1728866147945,0.65206202,62821.0,62820.0,0.001818]
[1728866148378,0.65306202,62821.0,62820.0,0.002818]
[1728866148803,0.65106202,62821.0,62820.0,0.000818]
[1728866149229,0.65206202,62821.0,62820.0,0.001818]
[1728866150082,0.65204271,62821.0,62820.0,0.001818]
[1728866150300,0.82172308,62821.0,62820.0,0.002818]
[1728866150514,0.366417,62807.0,62799.0,0.23772356]
[1728866150742,0.54593407,62807.0,62799.0,0.23772356]
[1728866151025,0.54593167,62807.0,62799.0,0.23772356]
[1728866151229,0.57287468,62807.0,62799.0,0.23772356]
[1728866151443,0.57287468,62807.0,62790.0,0.30922239]
[1728866151883,0.64893167,62807.0,62806.0,0.001819]
[1728866152086,0.65093167,62807.0,62806.0,0.001819]
[1728866152539,0.64993167,62807.0,62806.0,0.001819]
[1728866153640,0.3585513,62807.0,62806.0,0.001819]
[1728866153859,0.2585513,62807.0,62806.0,0.001819]
[1728866154066,0.25854828,62807.0,62806.0,0.001819]
[1728866154662,0.25554828,62807.0,62806.0,0.000819]
[1728866155076,0.28349021,62807.0,62806.0,0.000819]
[1728866155536,0.28549021,62807.0,62806.0,0.000819]
[1728866158111,0.27065893,62807.0,62806.0,0.000819]
[1728866158341,0.28550653,62807.0,62806.0,0.000819]
[1728866159660,0.29050653,62807.0,62806.0,0.000819]
[1728866161007,0.65073009,62807.0,62806.0,0.000819]
[1728866161227,0.41501474,62807.0,62806.0,0.000819]
[1728866161442,0.40015893,62807.0,62806.0,0.000819]
[1728866161655,0.41501574,62807.0,62806.0,0.000819]
[1728866161866,0.39007381,62807.0,62806.0,0.000819]
[1728866162672,0.38807381,62807.0,62806.0,0.000819]
[1728866164627,0.38806954,62807.0,62806.0,0.000819]
[1728866164818,0.38306954,62807.0,62806.0,0.000819]
[1728866165067,0.19516012,62807.0,62806.0,0.000819]
[1728866167788,0.19116012,62807.0,62806.0,0.000819]
[1728866168284,0.19216012,62807.0,62806.0,0.000819]
[1728866168502,0.19416012,62807.0,62806.0,0.000819]
[1728866169152,0.19216012,62807.0,62806.0,0.000819]
[1728866169413,0.38776012,62807.0,62806.0,0.000819]
[1728866169618,0.48476012,62807.0,62806.0,0.000819]
[1728866169829,0.48876012,62807.0,62806.0,0.000819]
[1728866170038,0.49176012,62807.0,62806.0,0.000819]
[1728866170253,0.48976012,62807.0,62806.0,0.000819]
[1728866171999,0.464817,62807.0,62806.0,0.000819]
[1728866174863,0.48975967,62807.0,62806.0,0.000819]
[1728866175738,0.89085294,62807.0,62806.0,0.000819]
[1728866176010,0.82924932,62807.0,62806.0,0.000819]
[1728866176238,0.90047764,62807.0,62806.0,0.000819]
[1728866176485,0.90056692,62807.0,62806.0,0.000819]
[1728866176734,0.82924932,62807.0,62806.0,0.000819]
[1728866177196,0.80935339,62807.0,62806.0,0.000819]
[1728866177424,0.81835339,62807.0,62806.0,0.002819]
[1728866178651,0.88965535,62807.0,62806.0,0.002819]
[1728866179390,0.81835339,62807.0,62806.0,0.002819]
[1728866182103,0.79341072,62807.0,62806.0,0.002819]
[1728866183751,0.91218977,62807.0,62806.0,0.002819]
[1728866184005,0.79341072,62807.0,62806.0,0.002819]
[1728866184980,0.81835657,62807.0,62806.0,0.002819]
[1728866185471,0.9371388,62807.0,62806.0,0.002819]
[1728866185715,0.93991089,62807.0,62806.0,0.002819]
[1728866185966,0.82111388,62807.0,62806.0,0.002819]
[1728866186465,0.93990306,62807.0,62806.0,0.002819]
[1728866186724,0.82111388,62807.0,62806.0,0.002819]
[1728866187204,0.52953837,62791.0,62781.0,0.03196]
[1728866187439,0.5444101,62791.0,62781.0,0.03196]
[1728866187676,0.159288,62779.0,62778.0,0.032779]
[1728866187936,0.17915973,62779.0,62778.0,0.04233947]
[1728866188725,0.3458401,62779.0,62778.0,0.000819]
[1728866189216,0.87079068,62779.0,62778.0,0.000819]
[1728866189951,0.87179068,62779.0,62778.0,0.008819]
[1728866190193,0.87179068,62779.0,62778.0,0.015819]
[1728866190194,0.87279068,62779.0,62778.0,0.015819]
[1728866190438,0.37179068,62779.0,62778.0,0.007819]
[1728866190732,0.60851424,62779.0,62778.0,0.001819]
[1728866190979,1.01752813,62779.0,62778.0,0.001819]
[1728866191238,0.85084776,62779.0,62778.0,0.000819]
[1728866191455,0.90726034,62779.0,62778.0,0.000819]
[1728866191679,0.8131698,62779.0,62778.0,0.000819]
[1728866191891,0.95489959,62779.0,62778.0,0.000819]
[1728866192106,1.05169959,62779.0,62778.0,0.000819]
[1728866192335,1.04969959,62779.0,62778.0,0.000819]
[1728866192565,1.2110693,62779.0,62778.0,0.000819]
[1728866192800,1.2090693,62779.0,62778.0,0.000819]
[1728866193032,1.2260693,62779.0,62778.0,0.002819]
[1728866193224,1.2200693,62779.0,62778.0,0.001819]
[1728866193650,1.2110693,62779.0,62778.0,0.000819]
[1728866193867,1.2380693,62779.0,62778.0,0.002819]
[1728866194089,1.2250693,62779.0,62778.0,0.001819]
[1728866194971,1.25002591,62779.0,62778.0,0.001819]
[1728866195355,1.24998644,62779.0,62778.0,0.001819]
[1728866196426,1.26398644,62779.0,62778.0,0.002819]
[1728866196641,1.67870213,62779.0,62778.0,0.001819]
[1728866196916,1.51002176,62779.0,62778.0,0.001819]
[1728866197125,1.67870213,62779.0,62778.0,0.001819]
[1728866197334,1.51202176,62779.0,62778.0,0.001819]
[1728866197504,1.52602176,62779.0,62778.0,0.002819]
[1728866198943,1.26785205,62779.0,62778.0,0.002819]
[1728866199153,1.26783983,62779.0,62778.0,0.002819]
[1728866200034,1.26783983,62779.0,62778.0,0.001819]
[1728866200213,1.25383983,62779.0,62778.0,0.001819]
[1728866200424,1.08861582,62779.0,62778.0,0.001819]
[1728866200873,1.09961582,62779.0,62778.0,0.002819]
[1728866201908,1.07465921,62779.0,62778.0,0.002819]
[1728866204960,1.09961363,62779.0,62778.0,0.002819]
[1728866206002,1.10237121,62779.0,62778.0,0.002819]
[1728866206855,1.10238925,62779.0,62778.0,0.002819]
[1728866207472,1.09963167,62779.0,62778.0,0.002819]
[1728866211818,1.07467725,62779.0,62778.0,0.002819]
[1728866213163,1.39727097,62779.0,62778.0,0.002819]
[1728866213382,1.49817097,62779.0,62778.0,0.002819]
[1728866214250,0.99817097,62779.0,62778.0,0.002819]
[1728866214943,1.02312695,62779.0,62778.0,0.002819]
[1728866215615,1.02112695,62779.0,62778.0,0.002819]
[1728866215825,1.02312695,62779.0,62778.0,0.002819]
[1728866216287,1.52312695,62779.0,62778.0,0.002819]
[1728866218221,1.68980732,62779.0,62778.0,0.002819]
[1728866218440,0.63339937,62767.0,62759.0,0.23772356]
[1728866218673,0.80943226,62767.0,62759.0,0.23772356]
[1728866219126,0.83439047,62767.0,62759.0,0.23772356]
[1728866219336,0.83439047,62767.0,62757.0,0.000818]
[1728866219591,0.83439047,62767.0,62766.0,0.001819]
[1728866219811,0.84439047,62767.0,62766.0,0.002819]
[1728866220038,0.84239047,62767.0,62766.0,0.001819]
[1728866220494,0.85339047,62767.0,62766.0,0.002819]
[1728866220693,1.35339047,62767.0,62766.0,0.002819]
[1728866221084,1.35139047,62767.0,62766.0,0.002819]
[1728866221440,1.35144511,62767.0,62766.0,0.002819]
[1728866221638,1.0178211,62767.0,62766.0,0.002819]
[1728866221863,0.99286289,62767.0,62766.0,0.002819]
[1728866224781,1.41533596,62767.0,62766.0,0.002819]
[1728866225019,1.5219954,62767.0,62766.0,0.002819]
[1728866225352,1.5239954,62767.0,62766.0,0.002819]
[1728866225560,1.5219954,62767.0,62766.0,0.002819]
[1728866228610,1.50715253,62767.0,62766.0,0.002819]
[1728866228816,1.52198643,62767.0,62766.0,0.002819]
[1728866229047,1.36061672,62767.0,62766.0,0.002819]
[1728866230121,1.26071672,62767.0,62766.0,0.002819]
[1728866230367,0.98979271,62767.0,62766.0,0.002819]
[1728866230578,0.82311234,62767.0,62766.0,0.002819]
[1728866231233,0.71811234,62767.0,62766.0,0.002819]
[1728866231442,0.71411234,62767.0,62766.0,0.095019]
[1728866231667,0.71211234,62767.0,62766.0,0.094019]
[1728866231883,0.6871529,62767.0,62766.0,0.10263732]
[1728866232098,0.6891529,62767.0,62766.0,0.10263732]
[1728866232310,0.6791529,62767.0,62766.0,0.094019]
[1728866232532,0.6791551,62767.0,62766.0,0.10463732]
[1728866232740,0.6791551,62767.0,62766.0,0.10563732]
[1728866232952,0.5198361,62767.0,62766.0,0.10563732]
[1728866233373,0.5198361,62767.0,62766.0,0.26495832]
[1728866233578,0.5198361,62767.0,62766.0,0.10563732]
[1728866234448,0.0198361,62767.0,62766.0,0.10563732]
[1728866234659,0.1791551,62767.0,62766.0,0.10563732]
[1728866234866,0.20411078,62767.0,62766.0,0.10563732]
[1728866235803,0.04479178,62767.0,62766.0,0.10563732]
[1728866236027,0.20411078,62767.0,62766.0,0.10563732]
[1728866236677,0.03979178,62767.0,62766.0,0.10563732]
[1728866237103,0.04479178,62767.0,62766.0,0.10563732]
[1728866237726,0.03979178,62767.0,62766.0,0.10563732]
[1728866237913,0.03979178,62767.0,62766.0,0.26495832]
[1728866238560,0.03979178,62767.0,62766.0,0.10563732]
[1728866239220,0.03979178,62767.0,62766.0,0.26495832]
[1728866240606,0.01483497,62767.0,62766.0,0.42618233]
[1728866242584,0.3186,62775.0,62766.0,0.42618233]
[1728866242585,0.00164,62778.0,62766.0,0.47502133]
[1728866242820,0.00164,62778.0,62777.0,0.32597437]
[1728866243066,0.00164,62778.0,62777.0,0.49567437]
[1728866243291,0.00164,62778.0,62777.0,0.37071286]
[1728866243514,0.00164,62778.0,62777.0,0.37271286]
[1728866243988,0.00164,62778.0,62777.0,0.37071286]
[1728866244423,0.00164,62778.0,62777.0,0.53493687]
[1728866244639,0.23772356,62790.0,62780.0,0.1499]
[1728866244877,0.23772356,62790.0,62789.0,0.39964337]
[1728866245337,0.23772356,62790.0,62789.0,0.40938551]
[1728866245531,0.07122951,62791.0,62790.0,0.159261]
[1728866245964,0.07122951,62791.0,62790.0,0.16900174]
[1728866246177,0.14245902,62793.0,62790.0,0.33022575]
[1728866246387,0.04748634,62793.0,62791.0,0.16122401]
[1728866246801,0.04748634,62793.0,62791.0,0.17096336]
[1728866247231,0.20673934,62793.0,62791.0,0.17096336]
[1728866247679,0.160253,62793.0,62791.0,0.17496336]
[1728866248419,0.161253,62793.0,62791.0,0.18096336]
[1728866249273,0.002,62793.0,62791.0,0.18096336]
[1728866251897,0.003638,62793.0,62791.0,0.18096336]
[1728866252757,0.33093537,62792.0,62791.0,0.01973935]
[1728866253183,0.33093537,62792.0,62791.0,0.01]
[1728866253854,0.159282,62782.0,62779.0,0.23772356]
[1728866254322,0.159282,62782.0,62780.0,0.009696]
[1728866254773,0.159282,62782.0,62778.0,0.159291]
[1728866255027,0.159282,62782.0,62781.0,0.00969461]
[1728866255271,0.159282,62782.0,62778.0,0.16122401]
[1728866255504,0.001,62782.0,62781.0,0.00969461]
[1728866255744,0.001,62782.0,62780.0,0.159285]
[1728866255974,0.001,62782.0,62781.0,0.00969461]
[1728866256416,0.001,62782.0,62781.0,0.17091862]
[1728866256418,0.001,62782.0,62781.0,0.49688199]
[1728866256672,0.001,62782.0,62781.0,0.67018199]
[1728866256943,0.001,62782.0,62781.0,0.70212199]
[1728866257185,0.23772356,62790.0,62789.0,0.191203]
[1728866257388,0.23772356,62790.0,62789.0,0.35242701]
[1728866257529,0.24272356,62798.0,62792.0,0.159255]
[1728866257764,0.40196456,62798.0,62792.0,0.33011967]
[1728866258805,0.159244,62797.0,62792.0,0.33011967]
[1728866259685,0.24272356,62798.0,62792.0,0.33011967]
[1728866259897,0.40196556,62798.0,62792.0,0.33011967]
[1728866260115,0.40196556,62798.0,62792.0,0.33611967]
[1728866260116,0.002638,62793.0,62792.0,0.33611967]
[1728866260528,0.003638,62793.0,62792.0,0.34311967]
[1728866263335,0.01844148,62793.0,62792.0,0.34311967]
[1728866263801,0.01844148,62793.0,62792.0,0.34697593]
[1728866265283,0.01844148,62793.0,62792.0,0.34190698]
[1728866266463,0.003638,62793.0,62792.0,0.34190698]
[1728866267648,0.01845588,62793.0,62792.0,0.34190698]
[1728866274207,0.0185126,62793.0,62792.0,0.34190698]
[1728866279732,0.0185126,62793.0,62792.0,0.18265198]
[1728866280442,0.0185126,62793.0,62792.0,0.34190698]
[1728866280910,0.0185126,62793.0,62792.0,0.18265198]
[1728866281146,0.003638,62793.0,62792.0,0.18265198]
[1728866281391,0.01851206,62793.0,62792.0,0.18265198]
[1728866282093,0.18276506,62793.0,62792.0,0.02142797]
[1728866282308,0.35266506,62793.0,62792.0,0.02142797]
[1728866282519,0.35266506,62793.0,62792.0,0.013]
[1728866283593,0.35166506,62793.0,62792.0,0.007]
[1728866283832,0.35166506,62793.0,62792.0,0.009]
[1728866284280,0.35066506,62793.0,62792.0,0.002]
[1728866284494,0.35066507,62793.0,62792.0,0.007]
[1728866284922,0.37561221,62793.0,62792.0,0.007]
[1728866285147,0.37561221,62793.0,62792.0,0.002]
[1728866285359,0.37561221,62793.0,62792.0,0.004]
[1728866285826,0.37561221,62793.0,62792.0,0.002]
[1728866286038,0.37561221,62793.0,62792.0,0.003]
[1728866286684,0.37561221,62793.0,62792.0,0.503]
[1728866287177,0.37561221,62793.0,62792.0,0.51140702]
[1728866288472,0.3756142,62793.0,62792.0,0.51140702]
[1728866289163,0.3756142,62793.0,62792.0,0.50940702]
[1728866289383,0.3756142,62793.0,62792.0,0.50840702]
[1728866289819,0.42303884,62793.0,62792.0,0.50840702]
[1728866290294,0.42319746,62793.0,62792.0,0.50840702]
[1728866290541,0.3756142,62793.0,62792.0,0.50840702]
[1728866290975,0.3756142,62793.0,62792.0,0.50940702]
[1728866291193,0.3756142,62793.0,62792.0,0.501]
[1728866291439,0.3756142,62793.0,62792.0,0.50941446]
[1728866291650,0.3756142,62793.0,62792.0,0.50841446]
[1728866291879,0.35266634,62793.0,62792.0,0.50841446]
[1728866292124,0.35366634,62793.0,62792.0,0.5]
[1728866292334,0.35166156,62793.0,62792.0,0.5]
[1728866292784,0.35666156,62793.0,62792.0,0.50841446]
[1728866293410,0.35266156,62793.0,62792.0,0.50841446]
[1728866293844,0.35466156,62793.0,62792.0,0.50841446]
[1728866294085,0.35266156,62793.0,62792.0,0.50841446]
[1728866294544,0.35966156,62793.0,62792.0,0.50941446]
[1728866294977,0.37760942,62793.0,62792.0,0.50841446]
[1728866295197,0.36373886,62793.0,62792.0,0.50841446]
[1728866295429,0.37860819,62793.0,62792.0,0.50841446]
[1728866295641,0.37560819,62793.0,62792.0,0.50841446]
[1728866296071,0.37560819,62793.0,62792.0,0.50941446]
[1728866296294,0.37560744,62793.0,62792.0,0.50941446]
[1728866296735,0.37560752,62793.0,62792.0,0.50941446]
[1728866300391,0.37560785,62793.0,62792.0,0.50841446]
[1728866300625,0.37760785,62793.0,62792.0,0.50841446]
[1728866301322,0.37560785,62793.0,62792.0,0.50841446]
[1728866301545,0.37760785,62793.0,62792.0,0.50841446]
[1728866301763,0.38060785,62793.0,62792.0,0.50841446]
[1728866301980,0.35565999,62793.0,62792.0,0.50841446]
[1728866302199,0.35565999,62793.0,62792.0,0.5]
[1728866302445,0.91869495,62793.0,62792.0,0.5]
[1728866302673,0.92069495,62793.0,62792.0,0.50842187]
[1728866302916,0.92069495,62793.0,62792.0,0.5]
[1728866303154,0.75932524,62793.0,62792.0,0.5]
[1728866303359,0.89997058,62793.0,62792.0,0.5]
[1728866303613,0.90197058,62793.0,62792.0,0.50842975]
[1728866303814,0.78952934,62793.0,62792.0,0.5]
[1728866304024,0.8098857,62793.0,62792.0,0.50845034]
[1728866304435,0.8148857,62793.0,62792.0,0.50945034]
[1728866304644,0.8208857,62793.0,62792.0,0.51045034]
[1728866304853,0.83783621,62793.0,62792.0,0.50945034]
[1728866305063,0.5096105,62793.0,62792.0,0.50945034]
[1728866305275,0.5186105,62793.0,62792.0,0.51045034]
[1728866305489,0.5126105,62793.0,62792.0,0.50945034]
[1728866305716,0.62644274,62793.0,62792.0,0.51045034]
[1728866305944,0.5166105,62793.0,62792.0,0.51045034]
[1728866306409,0.63544328,62793.0,62792.0,0.51045034]
[1728866306646,0.5166105,62793.0,62792.0,0.51045034]
[1728866308002,0.50174151,62793.0,62792.0,0.51045034]
[1728866308225,0.5215965,62793.0,62792.0,0.51045034]
[1728866308899,0.5215965,62793.0,62792.0,0.502]
[1728866309371,0.5215965,62793.0,62792.0,0.51044814]
[1728866310240,0.5165965,62793.0,62792.0,0.51044814]
[1728866310454,0.3989965,62793.0,62792.0,0.51044814]
[1728866311929,0.3740442,62793.0,62792.0,0.51044814]
[1728866314710,0.2740442,62793.0,62792.0,0.51044814]
[1728866314922,0.29899266,62793.0,62792.0,0.51044814]
[1728866315533,0.29898761,62793.0,62792.0,0.51044814]
[1728866317173,0.29898761,62793.0,62792.0,0.502]
[1728866317584,0.29898761,62793.0,62792.0,0.51047074]
[1728866319348,0.28413946,62793.0,62792.0,0.51047074]
[1728866319590,0.29898929,62793.0,62792.0,0.51047074]
[1728866319827,0.28413946,62793.0,62792.0,0.51047074]
[1728866320056,0.29898983,62793.0,62792.0,0.51047074]
[1728866320289,0.29898981,62793.0,62792.0,0.51047074]
[1728866320746,0.29898981,62793.0,62792.0,0.502]
[1728866321194,0.34647183,62793.0,62792.0,0.51047074]
[1728866321434,0.29898981,62793.0,62792.0,0.51047074]
[1728866321895,0.34647183,62793.0,62792.0,0.51047074]
[1728866322638,0.34647183,62793.0,62792.0,0.502]
[1728866323093,0.34647183,62793.0,62792.0,0.51047074]
[1728866323321,0.34647358,62793.0,62792.0,0.51047074]
[1728866324728,0.34650791,62793.0,62792.0,0.51047074]
[1728866325159,0.29899156,62793.0,62792.0,0.51047074]
[1728866325669,0.3465138,62793.0,62792.0,0.51047074]
[1728866325925,0.37026609,62793.0,62792.0,0.51047074]
[1728866326150,0.34531763,62793.0,62792.0,0.51047074]
[1728866326647,0.34531763,62793.0,62792.0,0.502]
[1728866327137,0.34532118,62793.0,62792.0,0.5104657]
[1728866327355,0.27404665,62793.0,62792.0,0.5104657]
[1728866327857,0.3453409,62793.0,62792.0,0.5104657]
[1728866328077,0.38650412,62793.0,62792.0,0.5104657]
[1728866329048,0.41145266,62793.0,62792.0,0.5104657]
[1728866330942,0.29899519,62793.0,62792.0,0.5104657]
[1728866331468,0.29900092,62793.0,62792.0,0.5104657]
[1728866332168,0.37030534,62793.0,62792.0,0.5104657]
[1728866332623,0.29900092,62793.0,62792.0,0.5104657]
[1728866334485,0.3703084,62793.0,62792.0,0.5104657]
[1728866334948,0.34535986,62793.0,62792.0,0.5104657]
[1728866336745,0.27405238,62793.0,62792.0,0.5104657]
[1728866338122,0.29900068,62793.0,62792.0,0.5104657]
[1728866338827,0.29900928,62793.0,62792.0,0.5104657]
[1728866341534,0.39410996,62793.0,62792.0,0.5104657]
[1728866341767,0.42021379,62793.0,62792.0,0.5104657]
[1728866341997,0.87781683,62793.0,62792.0,0.5104657]
[1728866342253,0.87781683,62793.0,62792.0,0.502]
[1728866342254,0.87981683,62793.0,62792.0,0.502]
[1728866342697,0.76894697,62793.0,62792.0,0.502]
[1728866342941,0.77094697,62793.0,62792.0,0.502]
[1728866343193,0.75094697,62793.0,62792.0,0.50845548]
[1728866343408,0.77194697,62793.0,62792.0,0.51045548]
[1728866343626,0.77394697,62793.0,62792.0,0.50945548]
[1728866343845,0.76394697,62793.0,62792.0,0.50845548]
[1728866344061,0.76394697,62793.0,62792.0,0.50945548]
[1728866344267,0.77194697,62793.0,62792.0,0.50945548]
[1728866345109,0.80789801,62793.0,62792.0,0.50945548]
[1728866345325,0.78589801,62793.0,62792.0,0.50945548]
[1728866345539,0.78587819,62793.0,62792.0,0.50945548]
[1728866345755,0.80187819,62793.0,62792.0,0.50945548]
[1728866345970,0.79187819,62793.0,62792.0,0.50845548]
[1728866346186,0.81887819,62793.0,62792.0,0.50845548]
[1728866346819,0.80587819,62793.0,62792.0,0.50845548]
[1728866347038,0.81987819,62793.0,62792.0,0.50845548]
[1728866349328,0.80502352,62793.0,62792.0,0.50845548]
[1728866349530,0.81987205,62793.0,62792.0,0.50845548]
[1728866351469,0.79187205,62793.0,62792.0,0.50845548]
[1728866351887,0.76692101,62793.0,62792.0,0.50845548]
[1728866352346,1.28092101,62793.0,62792.0,0.50845548]
[1728866352555,1.28092101,62793.0,62792.0,0.5]
[1728866352778,1.26692101,62793.0,62792.0,0.5]
[1728866353229,1.28092101,62793.0,62792.0,0.5]
[1728866354042,1.44229072,62793.0,62792.0,0.5]
[1728866354431,1.55474819,62793.0,62792.0,0.5]
[1728866354641,0.462988,62779.0,62778.0,0.23854256]
[1728866354838,0.86597548,62779.0,62778.0,0.23854256]
[1728866355041,0.86397548,62779.0,62778.0,0.000819]
[1728866355213,0.84912695,62779.0,62778.0,0.000819]
[1728866355412,0.86396857,62779.0,62778.0,0.000819]
[1728866355868,0.87096857,62779.0,62778.0,0.000819]
[1728866356371,0.89592403,62779.0,62778.0,0.000819]
[1728866356808,0.68956656,62779.0,62778.0,0.000819]
[1728866357054,0.61276656,62779.0,62778.0,0.000819]
[1728866357259,1.11276656,62779.0,62778.0,0.000819]
[1728866360781,0.95154255,62779.0,62778.0,0.000819]
[1728866361007,0.95153232,62779.0,62778.0,0.000819]
[1728866361446,0.94653232,62779.0,62778.0,0.000819]
[1728866361898,1.54182805,62779.0,62778.0,0.000819]
[1728866362141,1.59129053,62779.0,62778.0,0.000819]
[1728866362391,1.54382805,62779.0,62778.0,0.000819]
[1728866364188,1.61496912,62779.0,62778.0,0.000819]
[1728866364701,1.52899666,62779.0,62778.0,0.000819]
[1728866364934,1.56877848,62779.0,62778.0,0.000819]
[1728866365162,1.56877912,62779.0,62778.0,0.000819]
[1728866366066,1.56877912,62779.0,62778.0,0.500819]
[1728866366530,1.68731732,62779.0,62778.0,0.500819]
[1728866366977,1.56877912,62779.0,62778.0,0.500819]
[1728866368336,1.68719184,62779.0,62778.0,0.500819]
[1728866369268,1.68717682,62779.0,62778.0,0.500819]
[1728866369513,1.56877912,62779.0,62778.0,0.500819]
[1728866372077,1.66221465,62779.0,62778.0,0.49930079]
[1728866372760,1.66220958,62779.0,62778.0,0.49930079]
[1728866373221,1.54381682,62779.0,62778.0,0.49930079]
[1728866373463,1.66220958,62779.0,62778.0,0.49930079]
[1728866375064,1.68416674,62779.0,62778.0,0.49930079]
[1728866375285,1.4592518,62779.0,62778.0,0.49930079]
[1728866375505,1.69016674,62779.0,62778.0,0.49930079]
[1728866375718,1.70416674,62779.0,62778.0,0.49930079]
[1728866376169,1.69016674,62779.0,62778.0,0.49930079]
[1728866376384,1.70416674,62779.0,62778.0,0.49930079]
[1728866377020,1.69416674,62779.0,62778.0,0.49930079]
[1728866377249,1.70816674,62779.0,62778.0,0.49930079]
[1728866378326,1.70816674,62779.0,62778.0,0.50011979]
[1728866379013,1.4832518,62779.0,62778.0,0.50011979]
[1728866379225,1.70816674,62779.0,62778.0,0.50011979]
[1728866380147,1.69334658,62779.0,62778.0,0.50011979]
[1728866380373,1.70817044,62779.0,62778.0,0.50011979]
[1728866380623,1.58977768,62779.0,62778.0,0.50011979]
[1728866381968,1.56482052,62779.0,62778.0,0.50011979]
[1728866383968,1.33990558,62779.0,62778.0,0.50011979]
[1728866384198,1.56482052,62779.0,62778.0,0.50011979]
[1728866384428,1.56482052,62779.0,62778.0,0.50866447]
[1728866384643,1.56482052,62779.0,62778.0,0.50011979]
[1728866385073,1.58977735,62779.0,62778.0,0.50011979]
[1728866386834,0.9982927,62779.0,62778.0,0.50011979]
[1728866387055,1.06940915,62779.0,62778.0,0.50011979]
[1728866387299,1.06940915,62779.0,62778.0,0.50869552]
[1728866387550,1.06940915,62779.0,62778.0,0.50011979]
[1728866387778,1.05458529,62779.0,62778.0,0.50869552]
[1728866387992,1.06942891,62779.0,62778.0,0.50869552]
[1728866388218,1.09242882,62779.0,62778.0,0.50869552]
[1728866388885,1.18724497,62779.0,62778.0,0.50869552]
[1728866390652,1.18888297,62779.0,62778.0,0.50869552]
[1728866390863,1.11776652,62779.0,62778.0,0.50869552]
[1728866391343,1.02295037,62779.0,62778.0,0.50869552]
[1728866391976,0.99799354,62779.0,62778.0,0.50869552]
[1728866393860,0.99799354,62779.0,62778.0,0.50011979]
[1728866394443,0.99799354,62779.0,62778.0,0.50868274]
[1728866394891,0.99800128,62779.0,62778.0,0.50868274]
[1728866395133,1.02295612,62779.0,62778.0,0.50868274]
[1728866398542,1.00810485,62779.0,62778.0,0.50868274]
[1728866398770,1.0229536,62779.0,62778.0,0.50868274]
[1728866399017,1.00810485,62779.0,62778.0,0.50868274]
[1728866399280,1.02295358,62779.0,62778.0,0.50868274]
[1728866399500,0.85672957,62779.0,62778.0,0.50868274]
[1728866399714,0.73372957,62779.0,62778.0,0.68128274]
[1728866399941,0.73372957,62779.0,62778.0,0.67271979]
[1728866400155,0.73372957,62779.0,62778.0,0.68127484]
[1728866400583,0.71972957,62779.0,62778.0,0.68127484]
[1728866401017,0.72672957,62779.0,62778.0,0.68127484]
[1728866401452,0.71272957,62779.0,62778.0,0.68127484]
[1728866401662,0.72072957,62779.0,62778.0,0.68127484]
[1728866402130,0.68877473,62779.0,62778.0,0.68127484]
[1728866402559,0.68977473,62779.0,62778.0,0.68127484]
[1728866402794,0.68477473,62779.0,62778.0,0.68127484]
[1728866403045,0.52548673,62779.0,62778.0,0.84056584]
[1728866403282,0.52548673,62779.0,62778.0,0.84249885]
[1728866403948,0.51748673,62779.0,62778.0,1.11424732]
[1728866404163,0.51748673,62779.0,62778.0,1.11624732]
[1728866404164,0.51848673,62779.0,62778.0,1.11624732]
[1728866404415,0.503638,62779.0,62778.0,1.11624732]
[1728866404597,0.402638,62779.0,62778.0,1.11424732]
[1728866404812,0.403638,62779.0,62778.0,1.11624732]
[1728866405238,0.401638,62779.0,62778.0,1.00178985]
[1728866405448,0.002638,62779.0,62778.0,1.00378985]
[1728866405670,0.003638,62779.0,62778.0,1.00378985]
[1728866406100,0.002638,62779.0,62778.0,1.00378985]
[1728866406349,0.002638,62779.0,62778.0,1.00478985]
[1728866406617,0.003638,62779.0,62778.0,1.00478985]
[1728866411548,0.003638,62779.0,62778.0,0.84549885]
[1728866411782,0.162926,62779.0,62778.0,0.67289885]
[1728866412009,0.17772374,62779.0,62778.0,0.67289885]
[1728866412230,0.17772374,62779.0,62778.0,0.51167484]
[1728866412677,0.17672498,62779.0,62778.0,0.51067484]
[1728866412895,0.17772498,62779.0,62778.0,0.51167484]
[1728866413345,0.17772498,62779.0,62778.0,0.51067484]
[1728866413346,0.18172498,62779.0,62778.0,0.51067484]
[1728866413989,0.18172498,62779.0,62778.0,0.50867484]
[1728866413990,0.18072498,62779.0,62778.0,0.50867484]
[1728866414436,0.41844854,62779.0,62778.0,0.50967484]
[1728866414620,0.18072498,62779.0,62778.0,0.50867484]
[1728866414901,0.18072498,62779.0,62778.0,0.50967484]
[1728866415129,0.41844854,62779.0,62778.0,0.50967484]
[1728866415371,0.41844854,62779.0,62778.0,0.50867484]
[1728866415372,0.41478245,62779.0,62778.0,0.50867484]
[1728866415588,0.49018245,62779.0,62778.0,0.50867484]
[1728866415803,0.37772498,62779.0,62778.0,0.50867484]
[1728866416019,0.54579892,62779.0,62778.0,0.50867484]
[1728866416448,0.54679892,62779.0,62778.0,0.50867484]
[1728866416888,0.64679892,62779.0,62778.0,0.50867484]
[1728866417591,0.64579892,62779.0,62778.0,0.50867484]
[1728866417803,0.65079892,62779.0,62778.0,0.50867484]